{"text_format":"1","workbook":"xlsx","n_sheets":3,"sheets":["Лист1","Лист2","Лист3"],"not_rendered":{"charts":0,"images":0,"macros":1,"external_links":0,"defined_names":0,"comments":0,"pivot_tables":0},"unopened":[],"bounds":{"document_bytes":16777216,"sheet_cells":100000,"rows_first":2000,"rows_last":500,"rows_between":2000,"halvings":0,"cell_chars":16384,"cell_head_chars":4096},"cells_cut":0,"cells_raw":0,"read":"whole","date_system":"1900"}

{"sheet":"Лист1","index":0,"n_rows":11,"n_cols":17,"rows_kept":11,"cut":false,"hidden":false,"merged":[]}
["Среднее по",2,null,null,null,null,null,null,null,1,2,3,4,5,6,7,8]
[{"$f":"BRD_ENV_Data(B2,J2:Q5,5,1)","v":2.3333333333333335},"102, 103, 104_b",null,null,null,null,null,null,null,"A","B","C","D","E","F","G","H"]
[{"$f":"BRD_ENV_Data_Int(B3,J2:Q5,6,0)","v":13},"102, 103",null,null,null,null,null,null,null,102,5,10,8,1,3,8,3]
[null,null,null,null,null,null,null,null,null,103,5,3,4,4,10,3,8]
[null,null,null,null,null,null,null,null,null,"104_b",9,3,10,2,5,7,1]
[]
[]
[]
[null,null,null,null,null,null,null,null,null,null,{"$f":"RANDBETWEEN(1,10)","v":1},{"$f":"RANDBETWEEN(1,10)","v":4},7,1,4,3,6]
[null,null,null,null,null,null,null,null,null,null,{"$f":"RANDBETWEEN(1,10)","v":2},1,2,3,4,3,2]
[null,null,null,null,null,null,null,null,null,null,10,6,3,9,2,6,7]

{"sheet":"Лист2","index":1,"n_rows":0,"n_cols":0,"rows_kept":0,"cut":false,"hidden":false,"merged":[]}

{"sheet":"Лист3","index":2,"n_rows":0,"n_cols":0,"rows_kept":0,"cut":false,"hidden":false,"merged":[]}